{"text_format":"3","workbook":"xlsx","n_sheets":4,"sheets":["Obrazec za ponudbo","Podatki grafikona","Razčlenitev stroškov","Povzetek stroškov ponudbe"],"not_rendered":{"charts":1,"images":2,"defined_names":11},"read":"whole","date_system":"1900"}

{"sheet":"Obrazec za ponudbo","index":0,"n_rows":21,"n_cols":6,"rows_kept":21,"merged":[[0,1,0,4],[1,1,1,2],[7,1,8,1],[7,2,8,2],[10,1,10,5],[12,1,12,5],[14,1,14,5],[15,1,15,2],[15,4,15,5],[16,1,16,2],[16,4,16,5],[18,1,18,5],[19,1,19,2],[19,4,19,5],[20,1,20,2],[20,4,20,5]]}
[null,"Obrazec ponudbe za gradnjo"]
[null,"Informacije o lastniku",null,null,"Informacije o pogodbeniku"]
[null,"Ime","Vnesite ime lastnika v to celico",null,"Podjetje","Vnesite ime podjetja pogodbenika v to celico"]
[null,"Naslov","Vnesite naslov lastnika v to celico",null,"Ime","Vnesite ime pogodbenika v to celico"]
[null,"Mesto, poštna številka","Vnesite mesto, državo in poštno številko lastnika v to celico",null,"Naslov","Vnesite naslov pogodbenika v to celico"]
[null,"Telefon","Vnesite telefonsko številko lastnika v to celico",null,"Mesto, poštna številka","Vnesite kraj, državo in poštno številko pogodbenika v to celico"]
[null,"E-pošta","Vnesite e-poštni naslov lastnika v to celico",null,"Telefon","Vnesite telefonsko številko pogodbenika v to celico"]
[null,"Ime projekta","Vnesite ime projekta v to celico",null,"E-pošta","Vnesite e-poštni naslov pogodbenika v to celico "]
[{"$nulls":4},"Datum dokončanja","Vnesite datum dokončanja v to celico"]
[null,"Obseg dela"]
[null,"Obseg dela projekta gre sem. Vnesite vse želene specifikacije. \n\nVzorčno besedilo: To bo vzorčni projekt gradnje velikega sklopa stopnic. Za izdelavo okvirja bomo uporabili les 2 x 4 in 2 x 8, kot tudi profile nosilcev. Stopnice bodo izrezane iz materiala 2 x 4. Uporabljeni bodo najmanj 2-palčni vijaki.  Žeblji bodo najmanj 7,6 cm. Konstrukcijska teža mora biti najmanj 500 funtov na stopnico. Stopnice bodo v enaki višini kot pri hiši. Na hišo bo pritrjena pohodna deska. Pogodbenik bo poskrbel za čiščenje."]
[null,"Ni vključeno"]
[null,"Podrobnosti projekta, ki niso vključene, so tukaj. Vnesite vse, kar ni vključeno v to ponudbo. \n\nVzorčno besedilo: Ograja ne bo nameščena. Zemljišče mora pripraviti lastnik. Stopnice bo pobarval lastnik."]
[null,"Predlog podjetja"]
[null,"Tukaj je predlog podjetja. Vnesite pregled predloga, vključno s tem, kdo predlaga delo, pričakovani datum dokončanja in znesek predloga.\n\nVzorčno besedilo: Mi, »ime podjetja«, predlagamo zgornji obseg dela, ki bo dokončan do datuma dokončanja za znesek »Skupni znesek«."]
[]
[null,"Poslala oseba (predstavnik podjetja)",null,null,"Datum"]
[null,"Sprejem lastnika"]
[null,"Tukaj pride sprejem lastnika. V potrditveno izjavo vnesite ime lastnika, ki vključuje datum dokončanja in skupni znesek, naveden v predlogu podjetja. \n\nVzorčno besedilo: Jaz, »Ime lastnika«, sprejemam zgornji obseg dela, ki bo dokončan do datuma dokončanja za znesek »Skupni znesek«."]
[]
[null,"Poslala oseba (lastnik objekta ali pooblaščeni zastopnik)",null,null,"Datum"]

{"sheet":"Podatki grafikona","index":1,"n_rows":7,"n_cols":3,"rows_kept":7,"hidden":true}
[]
[null,null,"Skupaj"]
[null,{"$f":"INDEX(BidItems[#Data],MATCH(1,BidItems[Razvrščeni stroški],0),2)","v":"Stroški delavca"},{"$f":"INDEX(BidItems[#Data],MATCH(1,BidItems[Razvrščeni stroški],0),4)","v":200}]
[null,{"$f":"INDEX(BidItems[#Data],MATCH(2,BidItems[Razvrščeni stroški],0),2)","v":"Les 2 x 4 x 10"},{"$f":"INDEX(BidItems[#Data],MATCH(2,BidItems[Razvrščeni stroški],0),4)","v":99.39999999999999}]
[null,{"$f":"INDEX(BidItems[#Data],MATCH(3,BidItems[Razvrščeni stroški],0),2)","v":"Profili nosilcev"},{"$f":"INDEX(BidItems[#Data],MATCH(3,BidItems[Razvrščeni stroški],0),4)","v":74.7}]
[null,{"$f":"INDEX(BidItems[#Data],MATCH(4,BidItems[Razvrščeni stroški],0),2)","v":"Les 2 x 8 x 10"},{"$f":"INDEX(BidItems[#Data],MATCH(4,BidItems[Razvrščeni stroški],0),4)","v":33.75}]
[null,{"$f":"INDEX(BidItems[#Data],MATCH(5,BidItems[Razvrščeni stroški],0),2)","v":"Par rokavic, usnje"},{"$f":"INDEX(BidItems[#Data],MATCH(5,BidItems[Razvrščeni stroški],0),4)","v":15.5}]

{"sheet":"Razčlenitev stroškov","index":2,"n_rows":14,"n_cols":6,"rows_kept":14,"merged":[[0,1,0,4],[1,1,1,4]]}
[null,"Razčlenitev stroškov",{"$nulls":3}," "]
[null,"Seznam materialov in stroškov"]
[null,"Količina","Opis","Strošek","Skupaj","Razvrščeni stroški"]
[null,5,"Les 2 x 8 x 10",{"v":6.75,"d":"6.75 €"},{"$f":"IFERROR(BidItems[[#This Row],[Strošek]]*BidItems[[#This Row],[Količina]], \"\")","v":{"v":33.75,"d":"33.75 €"}},{"$f":"_xlfn.RANK.EQ(BidItems[[#This Row],[Skupaj]],BidItems[Skupaj])","v":4}]
[null,20,"Les 2 x 4 x 10",{"v":4.97,"d":"4.97 €"},{"$f":"IFERROR(BidItems[[#This Row],[Strošek]]*BidItems[[#This Row],[Količina]], \"\")","v":{"v":99.39999999999999,"d":"99.40 €"}},{"$f":"_xlfn.RANK.EQ(BidItems[[#This Row],[Skupaj]],BidItems[Skupaj])","v":2}]
[null,30,"Profili nosilcev",{"v":2.49,"d":"2.49 €"},{"$f":"IFERROR(BidItems[[#This Row],[Strošek]]*BidItems[[#This Row],[Količina]], \"\")","v":{"v":74.7,"d":"74.70 €"}},{"$f":"_xlfn.RANK.EQ(BidItems[[#This Row],[Skupaj]],BidItems[Skupaj])","v":3}]
[null,2,"Škatla z vijaki, 2 palca",{"v":6.67,"d":"6.67 €"},{"$f":"IFERROR(BidItems[[#This Row],[Strošek]]*BidItems[[#This Row],[Količina]], \"\")","v":{"v":13.34,"d":"13.34 €"}},{"$f":"_xlfn.RANK.EQ(BidItems[[#This Row],[Skupaj]],BidItems[Skupaj])","v":6}]
[null,2,"Škatla z žeblji, 7,6 cm",{"v":3.25,"d":"3.25 €"},{"$f":"IFERROR(BidItems[[#This Row],[Strošek]]*BidItems[[#This Row],[Količina]], \"\")","v":{"v":6.5,"d":"6.50 €"}},{"$f":"_xlfn.RANK.EQ(BidItems[[#This Row],[Skupaj]],BidItems[Skupaj])","v":7}]
[null,2,"Par rokavic, usnje",{"v":7.75,"d":"7.75 €"},{"$f":"IFERROR(BidItems[[#This Row],[Strošek]]*BidItems[[#This Row],[Količina]], \"\")","v":{"v":15.5,"d":"15.50 €"}},{"$f":"_xlfn.RANK.EQ(BidItems[[#This Row],[Skupaj]],BidItems[Skupaj])","v":5}]
[null,2,"Stroški delavca",{"v":100,"d":"100.00 €"},{"$f":"IFERROR(BidItems[[#This Row],[Strošek]]*BidItems[[#This Row],[Količina]], \"\")","v":{"v":200,"d":"200.00 €"}},{"$f":"_xlfn.RANK.EQ(BidItems[[#This Row],[Skupaj]],BidItems[Skupaj])","v":1}]
[4,null,null,"Delna vsota",{"$f":"SUBTOTAL(109,BidItems[Skupaj])","v":{"v":443.18999999999994,"d":"443.19 €"}}]
[5,null,null,"Davčna stopnja",{"v":0.075,"d":"7.50%"}]
[{"$nulls":3},"Davek",{"$f":"IFERROR(DavčnaStopnja*BidItems[[#Totals],[Skupaj]], \"\")","v":{"v":33.23924999999999,"d":"33.24 €"}}]
[{"$nulls":3},"Skupna vsota",{"$f":"IFERROR(Davek+BidItems[[#Totals],[Skupaj]], \"\")","v":{"v":476.4292499999999,"d":"476.43 €"}}]

{"sheet":"Povzetek stroškov ponudbe","index":3,"n_rows":3,"n_cols":4,"rows_kept":3}
[null,"Povzetek stroškov ponudbe"]
[null,"Razčlenitev materiala in stroškov",null,"Opombe"]
[null,"Tortni grafikon, ki prikazuje 5 najvišjih stroškov na material. Podatki temeljijo na tabeli »Elementi ponudbe« na delovnem listu »Razčlenitev stroškov«",null,"Vnesite opombe v to celico."]